fUSD/lending_fUSD_20240204
["ID","MTS","AMOUNT","RATE_DAILY","PERIOD"]
[313279168,1707073280067,-635.22892666,0.00043765,30]
[313279169,1707073280090,-811.32116266,0.000438,30]
[313279170,1707073280115,-3935.71528253,0.000439,30]
[313279171,1707073280138,-3566.68812688,0.0004398,117]
[313279172,1707073280161,-225.43608391,0.00044,30]
[313279173,1707073280183,-997.00685585,0.00044,30]
[313279174,1707073280208,-39614.0,0.00044132,30]
[313279175,1707073280233,-150.0,0.00044384,30]
[313279176,1707073280255,-150.0,0.00044384,30]
[313279177,1707073280276,-150.0,0.00044384,30]
[313279178,1707073280299,-150.0,0.00044384,30]
[313279179,1707073280321,-150.0,0.00044384,30]
[313279180,1707073280344,-150.0,0.00044384,30]
[313279181,1707073280368,-150.0,0.00044384,30]
[313279182,1707073280391,-150.0,0.00044384,30]
[313279183,1707073280413,-635.22892666,0.00044391,30]
[313279184,1707073280436,-635.22892666,0.00044423,30]
[313279185,1707073280460,-39614.0,0.00044564,30]
[313279186,1707073280483,-398.18349642,0.0004475,30]
[313279187,1707073280505,-5453.53381323,0.000449,30]
[313279188,1707073280530,-24619.0,0.000449,30]
[313279189,1707073280554,-5148.36980219,0.00045,30]
[313279190,1707073280577,-953.20880463,0.00045,30]
[313279191,1707073280600,-161.62651016,0.00045,30]
[313279192,1707073280623,-73664.96397498,0.00045,30]
[313279193,1707073280647,-623.73728936,0.00045,30]
[313279194,1707073280672,-687.0795,0.0004514,30]
[313279195,1707073280698,-152.19271474,0.00045497,30]
[313279196,1707073280722,-160.99975112,0.00045497,30]
[313279197,1707073280746,-635.22892666,0.00045682,30]
[313279198,1707073280770,-635.22892666,0.00045786,30]
[313279199,1707073280794,-157.0,0.000459,30]
[313279200,1707073280817,-2000.0,0.00046,30]
[313279201,1707073280841,-150.0,0.00046027,30]
[313279202,1707073280991,-150.0,0.00046027,30]
[313279203,1707073281015,-635.2289268,0.0004604,30]
[313279204,1707073281039,-234.90874,0.00046174,30]
[313279205,1707073281063,-2000.0,0.000465,32]
[313279206,1707073281086,-169.9299491,0.00046575,31]
[313279207,1707073281108,-500.0,0.00046575,31]
[313279208,1707073281130,-1044.03,0.00046575,31]
[313279209,1707073281153,-500.0,0.00046575,31]
[313279210,1707073281176,-614.6541872,0.00046575,31]
[313279211,1707073281199,-554.56314816,0.00046575,31]
[313279212,1707073281222,-180.00632062,0.00046575,31]
[313279213,1707073281246,-500.0,0.00046575,31]
[313279214,1707073281269,-283.44379383,0.00046575,31]
[313279215,1707073281291,-301.0079095,0.00046575,31]
[313279216,1707073281312,-498.64316328,0.00046575,31]
[313279217,1707073281336,-647.70784198,0.00046575,31]
[313279218,1707073281361,-202.11,0.00046575,31]
[313279219,1707073281385,-438.1176312,0.00046575,31]
[313279220,1707073281407,-500.0,0.00046575,31]
[313279221,1707073281430,-207.28689141,0.00046575,31]
[313279222,1707073281453,-313.47843984,0.00046575,31]
[313279223,1707073281476,-151.13519329,0.00046575,31]
[313279224,1707073281499,-500.0,0.00046575,31]
[313279225,1707073281521,-188.9983761,0.00046575,31]
[313279226,1707073281544,-500.0,0.00046575,31]
[313279227,1707073281566,-539.74519987,0.00046575,31]
[313279228,1707073281593,-500.0,0.00046575,31]
[313279229,1707073281615,-153.42132872,0.00046575,31]
[313279230,1707073281638,-500.0,0.00046575,31]
[313279231,1707073281662,-1000.0,0.00046575,30]
[313279232,1707073281685,-500.0,0.00046575,31]
[313279233,1707073281707,-500.0,0.00046575,31]
[313279234,1707073281729,-586.89958466,0.00046575,31]
[313279235,1707073281751,-562.81892248,0.00046575,31]
[313279236,1707073281773,-500.0,0.00046575,31]
[313279237,1707073281795,-500.0,0.00046575,31]
[313279238,1707073281818,-521.61116537,0.00046575,31]
[313279239,1707073281839,-539.2553977,0.00046575,31]
[313279240,1707073281861,-500.0,0.00046575,31]
[313279241,1707073281883,-500.0,0.00046575,31]
[313279242,1707073281906,-546.31,0.00046575,31]
[313279243,1707073281928,-500.0,0.00046575,31]
[313279244,1707073281951,-154.32889936,0.00046575,31]
[313279245,1707073281973,-500.0,0.00046575,31]
[313279246,1707073281996,-500.0,0.00046575,31]
[313279247,1707073282026,-519.06327267,0.00046575,31]
[313279248,1707073282049,-1699.92,0.00046575,31]
[313279249,1707073282071,-500.0,0.00046575,31]
[313279250,1707073282095,-500.0,0.00046575,31]
[313279251,1707073282117,-500.0,0.00046575,31]
[313279252,1707073282140,-500.0,0.00046575,31]
[313279253,1707073282162,-197.07686702,0.00046575,31]
[313279254,1707073282184,-500.0,0.00046575,31]
[313279255,1707073282216,-363.02543285,0.00046575,31]
[313279256,1707073282250,-500.0,0.00046575,31]
[313279257,1707073282280,-500.0,0.00046575,31]
[313279258,1707073282311,-500.0,0.00046575,31]
[313279259,1707073282341,-500.0,0.00046575,31]
[313279260,1707073282371,-500.0,0.00046575,31]
[313279261,1707073282401,-1005.74,0.00046575,31]
[313279262,1707073282429,-500.0,0.00046575,31]
[313279263,1707073282460,-169.59376291,0.00046575,31]
[313279264,1707073282485,-500.0,0.00046575,31]
[313279265,1707073282518,-500.0,0.00046575,31]
[313279266,1707073282547,-500.0,0.00046575,31]
[313279267,1707073282576,-500.0,0.00046575,31]
[313279268,1707073282607,-150.0,0.00046575,31]
[313279269,1707073282638,-500.0,0.00046575,31]
[313279270,1707073282667,-4366.03,0.00046575,31]
[313279271,1707073282692,-518.83483137,0.00046575,31]
[313279272,1707073282721,-500.0,0.00046575,31]
[313279273,1707073282762,-531.30083721,0.00046575,31]
[313279274,1707073282789,-508.07557422,0.00046575,31]
[313279275,1707073282815,-500.0,0.00046575,31]
[313279276,1707073282841,-536.3160345,0.00046575,31]
[313279277,1707073282868,-500.0,0.00046575,31]
[313279278,1707073282896,-500.0,0.00046575,31]
[313279279,1707073282922,-647.00947849,0.00046575,31]
[313279280,1707073282950,-627.72959118,0.00046575,31]
[313279281,1707073282977,-500.0,0.00046575,31]
[313279282,1707073283004,-500.0,0.00046575,31]
[313279283,1707073283030,-523.04536286,0.00046575,31]
[313279284,1707073283057,-500.0,0.00046575,31]
[313279285,1707073283083,-538.88709604,0.00046575,31]
[313279286,1707073283109,-500.0,0.00046575,31]
[313279287,1707073283135,-158.2291484,0.00046575,31]
[313279288,1707073283162,-500.0,0.00046575,31]
[313279289,1707073283188,-500.0,0.00046575,31]
[313279290,1707073283219,-557.74490041,0.00046575,31]
[313279291,1707073283248,-500.0,0.00046575,31]
[313279292,1707073283275,-500.0,0.00046575,31]
[313279293,1707073283302,-293.91314429,0.00046575,31]
[313279294,1707073283329,-975.07,0.00046575,31]
[313279295,1707073283357,-154.26883287,0.00046575,31]
[313279296,1707073283385,-633.5137851,0.00046575,31]
[313279297,1707073283411,-224.35402557,0.00046575,31]
[313279298,1707073283442,-237.69708338,0.00046575,31]
[313279299,1707073283471,-182.9245127,0.00046575,31]
[313279300,1707073283501,-500.0,0.00046575,31]
[313279301,1707073283531,-500.0,0.00046575,31]
[313279302,1707073283557,-500.0,0.00046575,31]
[313279303,1707073283581,-413.30442461,0.00046575,31]
[313279304,1707073283604,-449.71621672,0.00046575,31]
[313279305,1707073283807,-500.0,0.00046575,31]
[313279306,1707073283830,-500.0,0.00046575,31]
[313279307,1707073283853,-500.0,0.00046575,31]
[313279308,1707073283877,-500.0,0.00046575,31]
[313279309,1707073283899,-500.0,0.00046575,31]
[313279310,1707073283921,-500.0,0.00046575,31]
[313279311,1707073283944,-527.48362684,0.00046575,31]
[313279312,1707073283966,-597.6352743,0.00046575,31]
[313279313,1707073283988,-500.0,0.00046575,31]
[313279314,1707073284010,-500.0,0.00046575,31]
[313279315,1707073284031,-559.6410397,0.00046575,31]
[313279316,1707073284054,-500.0,0.00046575,31]
[313279317,1707073284077,-438.14319582,0.00046575,31]
[313279318,1707073284099,-500.0,0.00046575,31]
[313279319,1707073284121,-500.0,0.00046575,31]
[313279320,1707073284143,-500.0,0.00046575,31]
[313279321,1707073284170,-315.49652691,0.00046575,31]
[313279322,1707073284193,-500.0,0.00046575,31]
[313279323,1707073284215,-500.0,0.00046575,31]
[313279324,1707073284238,-500.0,0.00046575,31]
[313279325,1707073284260,-500.0,0.00046575,31]
[313279326,1707073284281,-500.0,0.00046575,31]
[313279327,1707073284303,-564.92440648,0.00046575,31]
[313279328,1707073284325,-500.0,0.00046575,31]
[313279329,1707073284351,-500.0,0.00046575,31]
[313279330,1707073284372,-1100.05,0.00046575,31]
[313279331,1707073284395,-500.0,0.00046575,31]
[313279332,1707073284418,-500.0,0.00046575,31]
[313279333,1707073284447,-290.03982332,0.00046575,31]
[313279334,1707073284471,-500.0,0.00046575,31]
[313279335,1707073284497,-502.28271544,0.00046575,31]
[313279336,1707073284522,-500.0,0.00046575,31]
[313279337,1707073284546,-500.0,0.00046575,31]
[313279338,1707073284571,-500.0,0.00046575,31]
[313279339,1707073284601,-515.63,0.00046575,31]
[313279340,1707073284626,-500.0,0.00046575,31]
[313279341,1707073284649,-500.0,0.00046575,31]
[313279342,1707073284673,-500.0,0.00046575,31]
[313279343,1707073284700,-204.25967914,0.00046575,31]
[313279344,1707073284723,-500.0,0.00046575,31]
[313279345,1707073284746,-500.0,0.00046575,31]
[313279346,1707073284769,-500.0,0.00046575,31]
[313279347,1707073284792,-500.0,0.00046575,31]
[313279348,1707073284815,-500.0,0.00046575,31]
[313279349,1707073284838,-248.47998135,0.00046575,31]
[313279350,1707073284862,-500.0,0.00046575,31]
[313279351,1707073284889,-154.47194824,0.00046575,31]
[313279352,1707073284914,-726.67,0.00046575,31]
[313279353,1707073284938,-500.0,0.00046575,31]
[313279354,1707073284962,-500.0,0.00046575,31]
[313279355,1707073284985,-462.09585537,0.00046575,31]
[313279356,1707073285008,-542.28437597,0.00046575,31]
[313279357,1707073285038,-500.0,0.00046575,31]
[313279358,1707073285063,-714.0,0.00046575,31]
[313279359,1707073285087,-224.29380338,0.00046575,31]
[313279360,1707073285112,-500.0,0.00046575,31]
[313279361,1707073285137,-500.0,0.00046575,31]
[313279362,1707073285159,-150.0,0.00046575,31]
[313279363,1707073285183,-500.0,0.00046575,31]
[313279364,1707073285212,-500.0,0.00046575,31]
[313279365,1707073285237,-500.0,0.00046575,31]
[313279366,1707073285260,-158.61777091,0.00046575,31]
[313279367,1707073285284,-500.0,0.00046575,31]
[313279368,1707073285314,-212.38314579,0.00046575,31]
[313279369,1707073285337,-5901.62,0.00046575,31]
[313279370,1707073285367,-500.0,0.00046575,31]
[313279371,1707073285392,-500.0,0.00046575,31]
[313279372,1707073285416,-500.0,0.00046575,31]
[313279373,1707073285445,-500.0,0.00046575,31]
[313279374,1707073285469,-500.0,0.00046575,31]
[313279375,1707073285494,-1087.84,0.00046575,31]
[313279376,1707073285519,-500.0,0.00046575,31]
[313279377,1707073285541,-500.0,0.00046575,31]
[313279378,1707073285564,-500.0,0.00046575,31]
[313279379,1707073285588,-221.47599294,0.00046575,31]
[313279380,1707073285610,-883.87,0.00046575,31]
[313279381,1707073285633,-500.0,0.00046575,31]
[313279382,1707073285656,-500.0,0.00046575,31]
[313279383,1707073285679,-303.31968887,0.00046575,31]
[313279384,1707073285703,-604.68079458,0.00046575,31]
[313279385,1707073285727,-539.97,0.00046575,31]
[313279386,1707073285753,-500.0,0.00046575,31]
[313279387,1707073285777,-500.0,0.00046575,31]
[313279388,1707073285800,-500.0,0.00046575,31]
[313279389,1707073285823,-500.0,0.00046575,31]
[313279390,1707073285846,-500.0,0.00046575,31]
[313279391,1707073285869,-500.0,0.00046575,31]
[313279392,1707073285891,-500.0,0.00046575,31]
[313279393,1707073285915,-500.0,0.00046575,31]
[313279394,1707073285938,-500.0,0.00046575,31]
[313279395,1707073285960,-164.74,0.00046575,31]
[313279396,1707073285982,-500.0,0.00046575,31]
[313279397,1707073286006,-500.0,0.00046575,31]
[313279398,1707073286029,-500.0,0.00046575,31]
[313279399,1707073286053,-4228.62,0.00046575,31]
[313279400,1707073286075,-553.67,0.00046575,31]
[313279401,1707073286110,-521.34786758,0.00046575,31]
[313279402,1707073286285,-500.0,0.00046575,31]
[313279403,1707073286309,-500.0,0.00046575,31]
[313279404,1707073286331,-500.0,0.00046575,31]
[313279405,1707073286357,-500.0,0.00046575,31]
[313279406,1707073286380,-500.0,0.00046575,31]
[313279407,1707073286403,-500.0,0.00046575,31]
[313279408,1707073286425,-598.86916979,0.00046575,31]
[313279409,1707073286449,-500.0,0.00046575,31]
[313279410,1707073286472,-261.24,0.00046575,31]
[313279411,1707073286496,-500.0,0.00046575,31]
[313279412,1707073286522,-245.62007527,0.00046575,31]
[313279413,1707073286546,-243.71710679,0.00046575,31]
[313279414,1707073286569,-198.99960683,0.00046575,31]
[313279415,1707073286593,-500.0,0.00046575,31]
[313279416,1707073286616,-500.0,0.00046575,31]
[313279417,1707073286640,-500.0,0.00046575,31]
[313279418,1707073286664,-500.0,0.00046575,31]
[313279419,1707073286687,-315.40672098,0.00046575,31]
[313279420,1707073286711,-500.0,0.00046575,31]
[313279421,1707073286733,-242.72415833,0.00046575,31]
[313279422,1707073286755,-500.0,0.00046575,31]
[313279423,1707073286778,-500.0,0.00046575,31]
[313279424,1707073286801,-153.85307946,0.00046575,31]
[313279425,1707073286823,-500.0,0.00046575,31]
[313279426,1707073286848,-500.0,0.00046575,31]
[313279427,1707073286870,-500.0,0.00046575,31]
[313279428,1707073286893,-621.90072622,0.00046575,31]
[313279429,1707073286917,-500.0,0.00046575,31]
[313279430,1707073286939,-500.0,0.00046575,31]
[313279431,1707073286962,-500.0,0.00046575,31]
[313279432,1707073286985,-500.0,0.00046575,31]
[313279433,1707073287007,-500.0,0.00046575,31]
[313279434,1707073287031,-500.0,0.00046575,31]
[313279435,1707073287055,-500.0,0.00046575,31]
[313279436,1707073287077,-500.0,0.00046575,31]
[313279437,1707073287100,-500.0,0.00046575,31]
[313279438,1707073287122,-500.0,0.00046575,31]
[313279439,1707073287145,-500.0,0.00046575,31]
[313279440,1707073287169,-500.0,0.00046575,31]
[313279441,1707073287192,-500.0,0.00046575,31]
[313279442,1707073287217,-500.0,0.00046575,31]
[313279443,1707073287239,-500.0,0.00046575,31]
[313279444,1707073287262,-500.0,0.00046575,31]
[313279445,1707073287284,-500.0,0.00046575,30]
[313279446,1707073287307,-500.0,0.00046575,31]
[313279447,1707073287330,-500.0,0.00046575,31]
[313279448,1707073287354,-500.0,0.00046575,31]
[313279449,1707073287384,-500.0,0.00046575,31]
[313279450,1707073287409,-1762.99,0.00046575,31]
[313279451,1707073287435,-820.32,0.00046575,31]
[313279452,1707073287459,-640.54288887,0.00046575,31]
[313279453,1707073287483,-500.0,0.00046575,31]
[313279454,1707073287506,-500.0,0.00046575,31]
[313279455,1707073287530,-500.0,0.00046575,31]
[313279456,1707073287554,-500.0,0.00046575,31]
[313279457,1707073287579,-552.27392123,0.00046575,31]
[313279458,1707073287603,-500.0,0.00046575,31]
[313279459,1707073287626,-500.0,0.00046575,31]
[313279460,1707073287651,-2876.0,0.00046575,31]
[313279461,1707073287676,-500.0,0.00046575,31]
[313279462,1707073287701,-500.0,0.00046575,31]
[313279463,1707073287724,-500.0,0.00046575,31]
[313279464,1707073287748,-500.0,0.00046575,31]
[313279465,1707073287771,-500.0,0.00046575,31]
[313279466,1707073287795,-500.0,0.00046575,31]
[313279467,1707073287818,-479.54141159,0.00046575,31]
[313279468,1707073287842,-346.67763548,0.00046575,31]
[313279469,1707073287865,-500.0,0.00046575,31]
[313279470,1707073287889,-500.0,0.00046575,31]
[313279471,1707073287913,-500.0,0.00046575,31]
[313279472,1707073287937,-633.54,0.00046575,31]
[313279473,1707073287961,-500.0,0.00046575,31]
[313279474,1707073287985,-173.31648709,0.00046575,31]
[313279475,1707073288008,-159.22782522,0.00046575,31]
[313279476,1707073288030,-502.28802192,0.00046575,31]
[313279477,1707073288054,-500.0,0.00046575,31]
[313279478,1707073288077,-500.0,0.00046575,31]
[313279479,1707073288099,-500.0,0.00046575,31]
[313279480,1707073288123,-500.0,0.00046575,31]
[313279481,1707073288145,-500.0,0.00046575,31]
[313279482,1707073288169,-500.0,0.00046575,31]
[313279483,1707073288191,-500.0,0.00046575,31]
[313279484,1707073288215,-500.0,0.00046575,31]
[313279485,1707073288238,-500.0,0.00046575,31]
[313279486,1707073288261,-529.92906703,0.00046575,31]
[313279487,1707073288285,-567.68584773,0.00046575,31]
[313279488,1707073288309,-574.25213304,0.00046575,31]
[313279489,1707073288332,-500.0,0.00046575,31]
[313279490,1707073288357,-500.0,0.00046575,31]
[313279491,1707073288379,-500.0,0.00046575,31]
[313279492,1707073288404,-589.45622366,0.00046575,31]
[313279493,1707073288427,-500.0,0.00046575,31]
[313279494,1707073288453,-500.0,0.00046575,31]
[313279495,1707073288476,-542.63034008,0.00046575,31]
[313279496,1707073288499,-500.0,0.00046575,31]
[313279497,1707073288524,-500.0,0.00046575,31]
[313279498,1707073288548,-500.0,0.00046575,31]
[313279499,1707073288575,-604.40862306,0.00046575,31]
[313279500,1707073288597,-500.0,0.00046575,31]
[313279501,1707073288621,-603.48522478,0.00046575,31]
[313279502,1707073288645,-500.0,0.00046575,31]
[313279503,1707073288669,-500.0,0.00046575,31]
[313279504,1707073288693,-500.0,0.00046575,31]
[313279505,1707073288720,-500.0,0.00046575,31]
[313279506,1707073288744,-500.0,0.00046575,31]
[313279507,1707073288894,-557.21873807,0.00046575,31]
[313279508,1707073288918,-517.19187543,0.00046575,31]
[313279509,1707073288942,-3654.59,0.00046575,31]
[313279510,1707073288966,-563.95829717,0.00046575,31]
[313279511,1707073288989,-500.0,0.00046575,31]
[313279512,1707073289014,-500.0,0.00046575,31]
[313279513,1707073289038,-582.10322324,0.00046575,31]
[313279514,1707073289062,-500.0,0.00046575,31]
[313279515,1707073289085,-283.68788291,0.00046575,31]
[313279516,1707073289107,-803.85,0.00046575,30]
[313279517,1707073289130,-248.60339855,0.00046575,31]
[313279518,1707073289153,-639.20125042,0.00046575,31]
[313279519,1707073289175,-500.0,0.00046575,31]
[313279520,1707073289198,-500.0,0.00046575,31]
[313279521,1707073289220,-500.0,0.00046575,31]
[313279522,1707073289243,-500.0,0.00046575,31]
[313279523,1707073289267,-2000.0,0.000468,32]
[313279524,1707073289288,-157.0,0.000468,30]
[313279525,1707073289310,-2126.94108812,0.00046852,30]
[313279526,1707073289333,-2000.0,0.00047,32]
[313279527,1707073289356,-712.0,0.00047,30]
[313279528,1707073289379,-4000.0,0.00047,30]
[313279529,1707073289402,-156.80178581,0.00047039,30]
[313279530,1707073289426,-500.0,0.00047123,31]
[313279531,1707073289450,-1044.03,0.00047123,31]
[313279532,1707073289473,-233.14,0.00047123,31]
[313279533,1707073289495,-1000.0,0.00047123,30]
[313279534,1707073289520,-221.84748734,0.00047123,31]
[313279535,1707073289544,-500.0,0.00047123,31]
[313279536,1707073289566,-546.31,0.00047123,31]
[313279537,1707073289591,-1699.92,0.00047123,31]
[313279538,1707073289615,-500.0,0.00047123,31]
[313279539,1707073289639,-500.0,0.00047123,31]
[313279540,1707073289661,-1005.74,0.00047123,31]
[313279541,1707073289683,-500.0,0.00047123,31]
[313279542,1707073289707,-4366.03,0.00047123,31]
[313279543,1707073289729,-500.0,0.00047123,31]
[313279544,1707073289753,-975.07,0.00047123,31]
[313279545,1707073289775,-500.0,0.00047123,31]
[313279546,1707073289799,-351.35226917,0.00047123,31]
[313279547,1707073289822,-500.0,0.00047123,31]
[313279548,1707073289845,-500.0,0.00047123,31]
[313279549,1707073289868,-398.67336371,0.00047123,31]
[313279550,1707073289893,-500.0,0.00047123,31]
[313279551,1707073289917,-1100.05,0.00047123,31]
[313279552,1707073289940,-500.0,0.00047123,31]
[313279553,1707073289963,-567.05295124,0.00047123,31]
[313279554,1707073289985,-374.00426353,0.00047123,31]
[313279555,1707073290009,-500.0,0.00047123,31]
[313279556,1707073290033,-515.63,0.00047123,31]
[313279557,1707073290056,-501.89450495,0.00047123,31]
[313279558,1707073290079,-500.0,0.00047123,31]
[313279559,1707073290102,-500.0,0.00047123,31]
[313279560,1707073290125,-500.0,0.00047123,31]
[313279561,1707073290148,-187.27992211,0.00047123,31]
[313279562,1707073290171,-500.0,0.00047123,31]
[313279563,1707073290194,-500.0,0.00047123,31]
[313279564,1707073290218,-500.0,0.00047123,31]
[313279565,1707073290242,-726.67,0.00047123,31]
[313279566,1707073290264,-500.0,0.00047123,31]
[313279567,1707073290286,-500.0,0.00047123,31]
[313279568,1707073290309,-500.0,0.00047123,31]
[313279569,1707073290332,-714.0,0.00047123,31]
[313279570,1707073290355,-500.0,0.00047123,31]
[313279571,1707073290377,-500.0,0.00047123,31]
[313279572,1707073290400,-466.1,0.00047123,31]
[313279573,1707073290424,-500.0,0.00047123,31]
[313279574,1707073290448,-500.0,0.00047123,31]
[313279575,1707073290470,-5901.62,0.00047123,31]
[313279576,1707073290492,-500.0,0.00047123,31]
[313279577,1707073290515,-500.0,0.00047123,31]
[313279578,1707073290539,-638.55967485,0.00047123,31]
[313279579,1707073290561,-1087.84,0.00047123,31]
[313279580,1707073290585,-500.0,0.00047123,31]
[313279581,1707073290610,-554.47530321,0.00047123,31]
[313279582,1707073290632,-883.87,0.00047123,31]
[313279583,1707073290655,-500.0,0.00047123,31]
[313279584,1707073290680,-500.0,0.00047123,31]
[313279585,1707073290705,-539.97,0.00047123,31]
[313279586,1707073290728,-325.24557785,0.00047123,31]
[313279587,1707073290752,-500.0,0.00047123,31]
[313279588,1707073290775,-500.0,0.00047123,31]
[313279589,1707073290798,-500.0,0.00047123,31]
[313279590,1707073290821,-531.81523575,0.00047123,31]
[313279591,1707073290845,-500.0,0.00047123,31]
[313279592,1707073290869,-500.0,0.00047123,31]
[313279593,1707073290893,-500.0,0.00047123,31]
[313279594,1707073290916,-500.0,0.00047123,31]
[313279595,1707073290941,-4228.62,0.00047123,31]
[313279596,1707073290964,-553.67,0.00047123,31]
[313279597,1707073290988,-500.0,0.00047123,31]
[313279598,1707073291012,-500.0,0.00047123,31]
[313279599,1707073291035,-500.0,0.00047123,31]
[313279600,1707073291058,-500.0,0.00047123,31]
[313279601,1707073291080,-500.0,0.00047123,31]
[313279602,1707073291105,-500.0,0.00047123,31]
[313279603,1707073291129,-500.0,0.00047123,31]
[313279604,1707073291153,-500.0,0.00047123,31]
[313279605,1707073291176,-500.0,0.00047123,31]
[313279606,1707073291201,-500.0,0.00047123,31]
[313279607,1707073291224,-500.0,0.00047123,31]
[313279608,1707073291247,-579.76302336,0.00047123,31]
[313279609,1707073291271,-500.0,0.00047123,31]
[313279610,1707073291295,-500.0,0.00047123,31]
[313279611,1707073291431,-500.0,0.00047123,31]
[313279612,1707073291458,-500.0,0.00047123,31]
[313279613,1707073291482,-500.0,0.00047123,31]
[313279614,1707073291505,-500.0,0.00047123,31]
[313279615,1707073291528,-495.66721512,0.00047123,31]
[313279616,1707073291553,-500.0,0.00047123,31]
[313279617,1707073291577,-500.0,0.00047123,31]
[313279618,1707073291602,-500.0,0.00047123,31]
[313279619,1707073291626,-500.0,0.00047123,31]
[313279620,1707073291652,-500.0,0.00047123,31]
[313279621,1707073291676,-158.24109688,0.00047123,31]
[313279622,1707073291701,-411.71827712,0.00047123,31]
[313279623,1707073291725,-500.0,0.00047123,30]
[313279624,1707073291747,-500.0,0.00047123,31]
[313279625,1707073291771,-500.0,0.00047123,31]
[313279626,1707073291795,-397.36917348,0.00047123,31]
[313279627,1707073291820,-1762.99,0.00047123,31]
[313279628,1707073291843,-820.32,0.00047123,31]
[313279629,1707073291866,-500.0,0.00047123,31]
[313279630,1707073291890,-574.15768852,0.00047123,31]
[313279631,1707073291922,-500.0,0.00047123,31]
[313279632,1707073291947,-500.0,0.00047123,31]
[313279633,1707073291972,-343.93835556,0.00047123,31]
[313279634,1707073291997,-2876.0,0.00047123,31]
[313279635,1707073292022,-500.0,0.00047123,31]
[313279636,1707073292045,-431.88263514,0.00047123,31]
[313279637,1707073292070,-500.0,0.00047123,31]
[313279638,1707073292093,-507.35205821,0.00047123,31]
[313279639,1707073292117,-500.0,0.00047123,31]
[313279640,1707073292140,-500.0,0.00047123,31]
[313279641,1707073292164,-500.0,0.00047123,31]
[313279642,1707073292188,-500.0,0.00047123,31]
[313279643,1707073292212,-633.54,0.00047123,31]
[313279644,1707073292235,-500.0,0.00047123,31]
[313279645,1707073292259,-336.09620681,0.00047123,31]
[313279646,1707073292281,-500.0,0.00047123,31]
[313279647,1707073292304,-500.0,0.00047123,31]
[313279648,1707073292327,-500.0,0.00047123,31]
[313279649,1707073292352,-500.0,0.00047123,31]
[313279650,1707073292375,-500.0,0.00047123,31]
[313279651,1707073292398,-500.0,0.00047123,31]
[313279652,1707073292421,-500.0,0.00047123,31]
[313279653,1707073292446,-500.0,0.00047123,31]
[313279654,1707073292471,-500.0,0.00047123,31]
[313279655,1707073292495,-500.0,0.00047123,31]
[313279656,1707073292518,-3654.59,0.00047123,31]
[313279657,1707073292540,-500.0,0.00047123,31]
[313279658,1707073292564,-500.0,0.00047123,31]
[313279659,1707073292589,-500.0,0.00047123,31]
[313279660,1707073292612,-803.85,0.00047123,30]
[313279661,1707073292636,-439.7381782,0.00047123,31]
[313279662,1707073292660,-500.0,0.00047123,31]
[313279663,1707073292683,-500.0,0.00047123,31]
[313279664,1707073292707,-1900.92060953,0.000472,30]
[313279665,1707073292731,-500.0,0.00047219,30]
[313279666,1707073292755,-156.08841774,0.00047395,30]
[313279667,1707073292779,-126165.0,0.000474,30]